Workbook

Sheet Sheet 1
A1: How white is Medicaid in Trump country?
C2: Medicaid Recipients | N2: Votes in 2024 Presidential Election
A3: State | B3: Population | D3: Hispanic | E3: % Hispanic | F3: Single-race White, | G3: % Single-race White, | H3: Single-race Asian, | I3: % Single-race Asian, | J3: Single-race Black, | K3: % Single-race Black, | L3: All other non-Hispanic, | M3: % All other non-Hispanic, | N3: Total | O3: Harris | P3: Harris | Q3: Trump | R3: Trump | S3: Other | T3: Other
C4: Total | D4: of any race | E4: of any race | F4: non-Hispanic | G4: non-Hispanic | H4: non-Hispanic | I4: non-Hispanic | J4: non-Hispanic | K4: non-Hispanic | L4: including multi-race | M4: including multi-race | N4: Votes | O4: Votes | P4: Percentage | Q4: Votes | R4: Percentage | S4: Votes | T4: Percentage
A5: Alabama | B5: 5,108,468 | C5: =D5+L5+F5+H5+J5 -> 1,063,568 | D5: 82,063 | E5: =D5/C5 -> 7.72% | F5: 497,468 | G5: =F5/C5 -> 46.77% | H5: 8,250 | I5: =H5/C5 -> 0.78% | J5: 414,903 | K5: =J5/C5 -> 39.01% | L5: 60,884 | M5: =L5/C5 -> 5.72% | N5: 2,265,090 | O5: 772,412 | P5: 34.10% | Q5: 1,462,616 | R5: 64.57% | S5: 30,062 | T5: 1.33%
A6: Alaska | B6: 733,406 | C6: 166,191 | D6: 11,933 | E6: =D6/C6 -> 7.18% | F6: 66,619 | G6: =F6/C6 -> 40.09% | H6: 12,253 | I6: =H6/C6 -> 7.37% | J6: 3,331 | K6: =J6/C6 -> 2.00% | L6: 72,055 | M6: =L6/C6 -> 43.36% | N6: 338,177 | O6: 140,026 | P6: 41.41% | Q6: 184,458 | R6: 54.54% | S6: 13,693 | T6: 4.05%
A7: Arizona | B7: 7,431,344 | C7: 1,538,856 | D7: 700,417 | E7: 45.52% | F7: 519,986 | G7: 33.79% | H7: 28,373 | I7: 1.84% | J7: 106,160 | K7: 6.90% | L7: 183,920 | M7: 11.95% | N7: 3,390,161 | O7: 1,582,860 | P7: 46.69% | Q7: 1,770,242 | R7: 52.22% | S7: 37,059 | T7: 1.09%
A8: Arkansas | B8: 3,067,732 | C8: 776,293 | D8: 78,274 | E8: 10.08% | F8: 439,015 | G8: 56.55% | H8: 5,625 | I8: 0.72% | J8: 184,050 | K8: 23.71% | L8: 69,329 | M8: 8.93% | N8: 1,182,676 | O8: 396,905 | P8: 33.56% | Q8: 759,241 | R8: 64.20% | S8: 26,530 | T8: 2.24%
A9: Florida | B9: 22,610,726 | C9: 4,041,162 | D9: 1,435,158 | E9: 35.51% | F9: 1,380,470 | G9: 34.16% | H9: 69,125 | I9: 1.71% | J9: 926,113 | K9: 22.92% | L9: 230,296 | M9: 5.70% | N9: 10,893,752 | O9: 4,683,038 | P9: 42.99% | Q9: 6,110,125 | R9: 56.09% | S9: 100,589 | T9: 0.92%
A10: Georgia | B10: 11,029,227 | C10: 2,083,809 | D10: 306,677 | E10: 14.72% | F10: 690,447 | G10: 33.13% | H10: 55,477 | I10: 2.66% | J10: 899,498 | K10: 43.17% | L10: 131,710 | M10: 6.32% | N10: 5,250,047 | O10: 2,548,017 | P10: 48.53% | Q10: 2,663,117 | R10: 50.73% | S10: 38,913 | T10: 0.74%
A11: Idaho | B11: 1,964,726 | C11: 370,760 | D11: 72,468 | E11: 19.55% | F11: 262,896 | G11: 70.91% | H11: 6,356 | I11: 1.71% | J11: 7,545 | K11: 2.04% | L11: 21,495 | M11: 5.80% | N11: 904,812 | O11: 274,972 | P11: 30.39% | Q11: 605,246 | R11: 66.89% | S11: 24,594 | T11: 2.72%
A12: Indiana | B12: 6,862,199 | C12: 1,481,137 | D12: 188,851 | E12: 12.75% | F12: 916,267 | G12: 61.86% | H12: 32,809 | I12: 2.22% | J12: 228,156 | K12: 15.40% | L12: 115,054 | M12: 7.77% | N12: 2,936,677 | O12: 1,163,603 | P12: 39.62% | Q12: 1,720,347 | R12: 58.58% | S12: 52,727 | T12: 1.80%
A13: Iowa | B13: 3,207,004 | C13: 667,065 | D13: 75,489 | E13: 11.32% | F13: 469,308 | G13: 70.35% | H13: 14,248 | I13: 2.14% | J13: 61,779 | K13: 9.26% | L13: 46,241 | M13: 6.93% | N13: 1,663,506 | O13: 707,278 | P13: 42.52% | Q13: 927,019 | R13: 55.73% | S13: 29,209 | T13: 1.76%
A14: Kansas | B14: 2,940,547 | C14: 440,780 | D14: 101,453 | E14: 23.02% | F14: 252,012 | G14: 57.17% | H14: 8,263 | I14: 1.87% | J14: 36,377 | K14: 8.25% | L14: 42,675 | M14: 9.68% | N14: 1,327,591 | O14: 544,853 | P14: 41.04% | Q14: 758,802 | R14: 57.16% | S14: 23,936 | T14: 1.80%
A15: Kentucky | B15: 4,526,154 | C15: 1,284,312 | D15: 81,898 | E15: 6.38% | F15: 961,115 | G15: 74.84% | H15: 15,758 | I15: 1.23% | J15: 139,341 | K15: 10.85% | L15: 86,200 | M15: 6.71% | N15: 2,074,530 | O15: 704,043 | P15: 33.94% | Q15: 1,337,494 | R15: 64.47% | S15: 32,993 | T15: 1.59%
A16: Louisiana | B16: 4,573,749 | C16: 1,482,419 | D16: 100,377 | E16: 6.77% | F16: 588,270 | G16: 39.68% | H16: 20,161 | I16: 1.36% | J16: 676,763 | K16: 45.65% | L16: 96,848 | M16: 6.53% | N16: 2,006,975 | O16: 766,870 | P16: 38.21% | Q16: 1,208,505 | R16: 60.22% | S16: 31,600 | T16: 1.57%
A17: Michigan | B17: 10,037,261 | C17: 2,435,873 | D17: 197,084 | E17: 8.09% | F17: 1,429,279 | G17: 58.68% | H17: 58,641 | I17: 2.41% | J17: 591,225 | K17: 24.27% | L17: 159,644 | M17: 6.55% | N17: 5,664,186 | O17: 2,736,533 | P17: 48.31% | Q17: 2,816,636 | R17: 49.73% | S17: 111,017 | T17: 1.96%
A18: Mississippi | B18: 2,939,690 | C18: 691,909 | D18: 27,442 | E18: 3.97% | F18: 260,936 | G18: 37.71% | H18: 3,303 | I18: 0.48% | J18: 357,427 | K18: 51.66% | L18: 42,801 | M18: 6.19% | N18: 1,228,008 | O18: 466,668 | P18: 38.00% | Q18: 747,744 | R18: 60.89% | S18: 13,596 | T18: 1.11%
A19: Missouri | B19: 6,196,156 | C19: 1,119,171 | D19: 78,385 | E19: 7.00% | F19: 741,245 | G19: 66.23% | H19: 12,519 | I19: 1.12% | J19: 199,623 | K19: 17.84% | L19: 87,399 | M19: 7.81% | N19: 2,995,327 | O19: 1,200,599 | P19: 40.08% | Q19: 1,751,986 | R19: 58.49% | S19: 42,742 | T19: 1.43%
A20: Montana | B20: 1,132,812 | C20: 249,467 | D20: 17,225 | E20: 6.90% | F20: 180,337 | G20: 72.29% | H20: 1,579 | I20: 0.63% | J20: 1,889 | K20: 0.76% | L20: 48,437 | M20: 19.42% | N20: 602,963 | O20: 231,906 | P20: 38.46% | Q20: 352,079 | R20: 58.39% | S20: 18,978 | T20: 3.15%
A21: Nebraska | B21: 1,978,379 | C21: 341,031 | D21: 71,042 | E21: 20.83% | F21: 199,823 | G21: 58.59% | H21: 12,037 | I21: 3.53% | J21: 29,458 | K21: 8.64% | L21: 28,671 | M21: 8.41% | N21: 947,159 | O21: 369,995 | P21: 39.06% | Q21: 564,816 | R21: 59.63% | S21: 12,348 | T21: 1.30%
A22: Nevada | B22: 3,194,176 | C22: 664,392 | D22: 262,296 | E22: 39.48% | F22: 195,133 | G22: 29.37% | H22: 42,903 | I22: 6.46% | J22: 95,444 | K22: 14.37% | L22: 68,616 | M22: 10.33% | N22: 1,484,840 | O22: 705,197 | P22: 47.49% | Q22: 751,205 | R22: 50.59% | S22: 28,438 | T22: 1.92%
A23: North Carolina | B23: 10,835,491 | C23: 2,079,508 | D23: 345,496 | E23: 16.61% | F23: 880,492 | G23: 42.34% | H23: 43,806 | I23: 2.11% | J23: 637,279 | K23: 30.65% | L23: 172,435 | M23: 8.29% | N23: 5,699,141 | O23: 2,715,375 | P23: 47.65% | Q23: 2,898,423 | R23: 50.86% | S23: 85,343 | T23: 1.50%
A24: North Dakota | B24: 783,926 | C24: 104,227 | D24: 11,306 | E24: 10.85% | F24: 59,457 | G24: 57.05% | H24: 1,082 | I24: 1.04% | J24: 5,792 | K24: 5.56% | L24: 26,590 | M24: 25.51% | N24: 368,155 | O24: 112,327 | P24: 30.51% | Q24: 246,505 | R24: 66.96% | S24: 9,323 | T24: 2.53%
A25: Ohio | B25: 11,785,935 | C25: 2,583,253 | D25: 177,797 | E25: 6.88% | F25: 1,550,309 | G25: 60.01% | H25: 53,315 | I25: 2.06% | J25: 587,075 | K25: 22.73% | L25: 214,757 | M25: 8.31% | N25: 5,767,788 | O25: 2,533,699 | P25: 43.93% | Q25: 3,180,116 | R25: 55.14% | S25: 53,973 | T25: 0.94%
A26: Oklahoma | B26: 4,053,824 | C26: 934,052 | D26: 170,728 | E26: 18.28% | F26: 454,417 | G26: 48.65% | H26: 19,806 | I26: 2.12% | J26: 93,468 | K26: 10.01% | L26: 195,633 | M26: 20.94% | N26: 1,566,173 | O26: 499,599 | P26: 31.90% | Q26: 1,036,213 | R26: 66.16% | S26: 30,361 | T26: 1.94%
A27: Pennsylvania | B27: 12,961,683 | C27: 2,817,234 | D27: 476,139 | E27: 16.90% | F27: 1,562,367 | G27: 55.46% | H27: 106,998 | I27: 3.80% | J27: 491,758 | K27: 17.46% | L27: 179,972 | M27: 6.39% | N27: 7,034,206 | O27: 3,423,042 | P27: 48.66% | Q27: 3,543,308 | R27: 50.37% | S27: 67,856 | T27: 0.96%
A28: South Carolina | B28: 5,373,555 | C28: 1,084,963 | D28: 108,556 | E28: 10.01% | F28: 462,173 | G28: 42.60% | H28: 9,537 | I28: 0.88% | J28: 431,123 | K28: 39.74% | L28: 73,574 | M28: 6.78% | N28: 2,548,140 | O28: 1,028,452 | P28: 40.36% | Q28: 1,483,747 | R28: 58.23% | S28: 35,941 | T28: 1.41%
A29: South Dakota | B29: 919,318 | C29: 139,580 | D29: 11,995 | E29: 8.59% | F29: 81,161 | G29: 58.15% | H29: 3,891 | I29: 2.79% | J29: 3,640 | K29: 2.61% | L29: 38,893 | M29: 27.86% | N29: 428,922 | O29: 146,859 | P29: 34.24% | Q29: 272,081 | R29: 63.43% | S29: 9,982 | T29: 2.33%
A30: Tennessee | B30: 7,126,489 | C30: 1,436,208 | D30: 145,669 | E30: 10.14% | F30: 850,788 | G30: 59.24% | H30: 14,912 | I30: 1.04% | J30: 334,367 | K30: 23.28% | L30: 90,472 | M30: 6.30% | N30: 3,063,942 | O30: 1,056,265 | P30: 34.47% | Q30: 1,966,865 | R30: 64.19% | S30: 40,812 | T30: 1.33%
A31: Texas | B31: 30,503,301 | C31: 4,965,084 | D31: 2,695,476 | E31: 54.29% | F31: 1,098,527 | G31: 22.13% | H31: 144,528 | I31: 2.91% | J31: 838,760 | K31: 16.89% | L31: 187,793 | M31: 3.78% | N31: 11,388,674 | O31: 4,835,250 | P31: 42.46% | Q31: 6,393,597 | R31: 56.14% | S31: 159,827 | T31: 1.40%
A32: Utah | B32: 3,417,734 | C32: 393,988 | D32: 94,477 | E32: 23.98% | F32: 243,483 | G32: 61.80% | H32: 10,916 | I32: 2.77% | J32: 8,158 | K32: 2.07% | L32: 36,954 | M32: 9.38% | N32: 1,488,494 | O32: 562,566 | P32: 37.79% | Q32: 883,818 | R32: 59.38% | S32: 42,110 | T32: 2.83%
A33: West Virginia | B33: 1,770,071 | C33: 471,654 | D33: 10,126 | E33: 2.15% | F33: 406,959 | G33: 86.28% | H33: 1,730 | I33: 0.37% | J33: 20,264 | K33: 4.30% | L33: 32,575 | M33: 6.91% | N33: 762,390 | O33: 214,309 | P33: 28.11% | Q33: 533,556 | R33: 69.98% | S33: 14,525 | T33: 1.91%
A34: Wisconsin | B34: 5,910,955 | C34: 1,098,868 | D34: 151,922 | E34: 13.83% | F34: 663,187 | G34: 60.35% | H34: 40,695 | I34: 3.70% | J34: 162,794 | K34: 14.81% | L34: 80,270 | M34: 7.30% | N34: 3,415,787 | O34: 1,668,229 | P34: 48.84% | Q34: 1,697,626 | R34: 49.70% | S34: 49,932 | T34: 1.46%
A35: Wyoming | B35: 584,057 | C35: 87,035 | D35: 16,139 | E35: 18.54% | F35: 59,692 | G35: 68.58% | H35: 305 | I35: 0.35% | J35: 874 | K35: 1.00% | L35: 10,025 | M35: 11.52% | N35: 269,048 | O35: 69,527 | P35: 25.84% | Q35: 192,633 | R35: 71.60% | S35: 6,888 | T35: 2.56%
